bitfinex/quotes_ETHUSD_20251015
["timestamp","ask_amount","ask_price","bid_price","bid_amount"]
[1760493261866,2.468,4123.6,4123.4,2.4251659]
[1760493262068,2.468,4123.6,4123.5,2.42512428]
[1760493262273,2.9149,4123.6,4123.1,2.54613582]
[1760493262445,2.467,4123.5,4123.3,2.42521594]
[1760493262646,2.467,4123.5,4122.8,2.42550308]
[1760493262647,2.9129,4123.4,4122.8,2.42550308]
[1760493262965,3.0337,4123.4,4122.7,0.1208]
[1760493263267,3.0337,4123.4,4122.8,2.42549006]
[1760493263436,0.4469,4123.3,4122.9,2.4254615]
[1760493263642,0.4469,4123.3,4122.9,2.42543069]
[1760493263838,0.4469,4123.3,4123.0,2.42541555]
[1760493264744,2.5868,4123.4,4123.0,2.42541555]
[1760493265136,3.0337,4123.4,4123.0,2.42541555]
[1760493265337,2.186,4123.3,4123.0,2.42541555]
[1760493266271,2.186,4123.3,4123.1,2.42533848]
[1760493266970,2.465,4123.2,4123.1,2.42533848]
[1760493267142,2.465,4123.2,4123.0,2.42540493]
[1760493267344,2.465,4123.2,4122.9,2.42546157]
[1760493267565,2.465,4123.2,4123.0,2.42541315]
[1760493267956,2.465,4123.2,4122.9,2.42542185]
[1760493268164,2.9119,4123.2,4123.0,2.42541455]
[1760493268869,2.9119,4123.2,4122.9,2.42546444]
[1760493269267,2.465,4123.2,4122.9,2.42546444]
[1760493269478,2.465,4123.2,4123.1,2.42535955]
[1760493270184,2.465,4123.2,4123.0,2.42541563]
[1760493270550,2.465,4123.2,4122.9,2.42547003]
[1760493270766,2.465,4123.2,4123.0,2.42536992]
[1760493271000,2.465,4123.2,4122.9,2.42546557]
[1760493271202,2.465,4123.2,4122.7,0.1208]
[1760493271859,0.1208,4123.4,4122.9,2.4254622]
[1760493272078,2.465,4123.3,4123.0,2.42541344]
[1760493272783,2.465,4123.3,4122.9,2.42546331]
[1760493273084,2.9119,4123.3,4122.9,2.42546331]
[1760493273555,2.465,4123.3,4123.1,2.42532868]
[1760493274783,2.465,4123.3,4123.0,2.42541265]
[1760493275370,2.186,4123.2,4123.0,2.42541265]
[1760493275573,3.558,4123.1,4123.0,2.42541265]
[1760493275876,0.1208,4123.4,4123.1,2.42534287]
[1760493276193,2.465,4123.3,4123.1,2.42534287]
[1760493276701,2.465,4123.3,4122.9,2.42547208]
[1760493276702,0.1208,4123.6,4123.5,2.42512428]
[1760493276850,2.5858,4123.6,4123.5,2.42512428]
[1760493280521,0.1208,4123.6,4123.5,2.42512428]
[1760493280712,0.1208,4123.6,4123.5,0.5846]
[1760493280713,1.055,4123.6,4123.5,0.5846]
[1760493280890,1.055,4123.6,4123.5,2.54592428]
[1760493281090,1.055,4123.6,4123.5,3.52109226]
[1760493282797,1.055,4123.6,4123.5,3.05729226]
[1760493284189,0.001,4124.0,4123.9,2.42488906]
[1760493284389,2.465,4124.0,4123.9,2.42488906]
[1760493285392,4.651,4124.0,4123.9,2.42488906]
[1760493288228,3.558,4124.0,4123.9,2.42488906]
[1760493289221,3.9911,4124.0,4123.9,2.42488906]
[1760493289526,3.558,4124.0,4123.9,2.42488906]
[1760493290237,2.465,4124.0,4123.9,2.42488906]
[1760493295231,4.651,4124.0,4123.9,2.42488906]
[1760493298643,3.558,4124.0,4123.9,2.42488906]
[1760493298859,4.0067,4124.0,4123.9,2.42488906]
[1760493299161,4.0067,4124.0,4123.7,2.4249756]
[1760493299365,0.2203,4123.8,4123.0,0.002]
[1760493299565,2.4250862,4123.6,4123.0,0.002]
[1760493299933,0.1208,4123.1,4123.0,0.002]
[1760493300131,2.5848,4123.1,4123.0,0.002]
[1760493300357,3.29198,4123.1,4123.0,0.002]
[1760493300533,6.35093955,4123.1,4123.0,0.002]
[1760493300741,3.88693955,4123.1,4123.0,0.002]
[1760493301063,0.82798,4123.1,4123.0,0.002]
[1760493301237,2.464,4123.1,4123.0,0.002]
[1760493303659,2.464,4123.1,4123.0,2.42741838]
[1760493304071,0.1208,4123.2,4123.0,0.002]
[1760493304240,0.1208,4123.2,4123.1,2.42535955]
[1760493304441,2.5848,4123.2,4123.1,2.42535955]
[1760493304636,0.1208,4123.2,4123.1,2.42535955]
[1760493304860,2.464,4123.2,4123.0,0.002]
[1760493305174,0.1208,4123.6,4123.5,2.42512428]
[1760493305471,0.38131494,4124.0,4123.9,2.42488906]
[1760493305670,2.465,4124.0,4123.9,2.42488906]
[1760493305967,2.465,4124.0,4123.8,2.42490307]
[1760493306482,0.669,4123.9,4123.4,0.1208]
[1760493306649,0.669,4123.9,4123.1,2.42530145]
[1760493306848,0.1208,4123.6,4123.2,2.42529874]
[1760493307043,2.9127,4123.5,4123.2,2.42529874]
[1760493307245,0.4487,4123.4,4123.0,2.54821481]
[1760493307576,2.464,4123.5,4123.4,2.4251831]
[1760493309045,2.464,4123.5,4123.3,2.42522895]
[1760493309773,2.464,4123.5,4123.4,2.4251831]
[1760493310449,0.2203,4123.9,4123.4,2.4251831]
[1760493310652,2.5848,4123.8,4123.7,2.42500666]
[1760493310863,3.0563,4123.8,4123.6,2.4250615]
[1760493311158,3.0563,4123.8,4123.7,2.42500666]
[1760493312380,2.5848,4123.8,4123.7,2.42500666]
[1760493312585,0.001,4124.5,4124.4,2.42459509]
[1760493312786,0.38129435,4124.8,4124.5,4.3445003]
[1760493312974,0.4715,4126.1,4124.8,2.42435996]
[1760493313165,0.2215,4126.3,4125.5,5.08882196]
[1760493313875,0.4715,4126.2,4125.5,2.42394812]
[1760493314062,0.2215,4125.6,4125.5,2.42394812]
[1760493314267,2.6855,4125.6,4125.5,2.42394812]
[1760493314886,2.464,4125.6,4125.5,2.42394812]
[1760493315294,4.65,4125.6,4125.5,2.42394812]
[1760493316194,3.557,4125.6,4125.5,2.42394812]
[1760493316392,3.557,4125.6,4125.5,2.90874894]
[1760493317267,3.557,4125.6,4125.5,2.42394812]
[1760493317961,3.557,4125.6,4125.2,0.4714]
[1760493317962,0.2215,4127.0,4125.4,4.34400736]
[1760493318168,0.779,4126.9,4126.8,2.42318503]
[1760493320894,0.779,4126.9,4126.3,0.4714]
[1760493321210,0.779,4126.9,4126.3,0.71054]
[1760493322467,0.779,4126.9,4126.7,2.42324375]
[1760493322896,0.1208,4127.3,4127.2,2.42295018]
[1760493323098,2.464,4127.3,4127.2,2.42295018]
[1760493323778,0.1208,4127.6,4127.3,2.42287932]
[1760493323990,2.463,4127.5,4127.2,0.1208]
[1760493324192,2.463,4127.5,4127.4,2.42283277]
[1760493325289,4.647,4127.5,4127.4,2.42283277]
[1760493327720,2.462,4127.5,4127.4,2.42283277]
[1760493328597,2.462,4127.5,4127.2,0.1208]
[1760493328598,2.9335,4127.5,4127.2,0.1208]
[1760493328799,0.4715,4127.4,4127.3,2.42289147]
[1760493329318,0.1208,4127.9,4127.2,0.1208]
[1760493329505,2.462,4127.8,4127.5,2.42272915]
[1760493329711,2.462,4127.8,4127.3,2.42288799]
[1760493329712,0.4715,4127.7,4127.3,2.42288799]
[1760493329908,2.462,4127.8,4127.3,2.42288799]
[1760493330232,0.4715,4127.6,4127.3,2.42288799]
[1760493330396,0.4715,4127.6,4127.2,2.42294554]
[1760493330600,0.4715,4127.5,4127.2,2.42294554]
[1760493330814,0.4715,4127.4,4127.2,2.42294554]
[1760493331012,2.462,4127.3,4127.2,2.42295018]
[1760493333818,0.4715,4127.7,4127.4,2.42281993]
[1760493334028,0.4715,4127.7,4127.2,2.42295018]
[1760493334029,2.462,4127.6,4127.5,2.42277407]
[1760493335212,3.554,4127.6,4127.5,2.42277407]
[1760493335537,4.646,4127.6,4127.5,2.42277407]
[1760493337306,4.646,4127.6,4126.7,0.1426]
[1760493337307,3.554,4127.6,4126.7,0.614]
[1760493337522,2.462,4127.6,4127.5,2.42277407]
[1760493337722,2.9335,4127.6,4126.7,4.37665423]
[1760493338002,2.9335,4127.6,4126.7,0.1426]
[1760493338208,2.9335,4127.6,4127.2,2.42290537]
[1760493338410,0.4715,4127.5,4127.3,2.42285216]
[1760493338809,0.4715,4127.5,4127.1,2.42300865]
[1760493339030,2.462,4127.6,4127.1,2.42300865]
[1760493339250,0.4715,4127.5,4127.2,2.42292589]
[1760493339936,0.4715,4127.5,4127.3,2.42288948]
[1760493341340,2.462,4127.6,4127.4,2.42283277]
[1760493341635,2.9098,4127.6,4127.4,2.42283277]
[1760493341847,0.1208,4127.7,4127.4,2.42283277]
[1760493342029,2.462,4127.5,4127.4,2.42283277]
[1760493343534,2.462,4127.5,4127.4,2.54363277]
[1760493345242,4.646,4127.5,4127.4,2.54363277]
[1760493347047,0.001,4127.9,4127.4,2.91948705]
[1760493347233,2.462,4127.8,4127.7,2.42265668]
[1760493347434,2.462,4127.8,4127.7,2.85175668]
[1760493349253,2.462,4127.8,4126.7,0.1426]
[1760493349457,0.001,4127.6,4126.7,0.1426]
[1760493349661,0.001,4127.6,4126.8,2.42318503]
[1760493349829,0.001,4127.6,4127.5,2.42277407]
[1760493350361,0.001,4127.6,4126.9,0.2565785]
[1760493350563,0.001,4127.6,4127.3,2.42287648]
[1760493350564,0.4488,4127.6,4127.3,2.42287648]
[1760493350725,0.4488,4127.6,4126.7,0.1426]
[1760493350726,0.4488,4127.6,4127.2,2.42294592]
[1760493350925,0.4478,4127.5,4127.2,2.42294592]
[1760493351149,0.4478,4127.5,4127.3,2.42287617]
[1760493351526,0.001,4127.6,4127.3,2.42289147]
[1760493351527,2.461,4127.4,4127.3,2.42289147]
[1760493351726,2.461,4127.4,4126.7,0.1426]
[1760493351920,2.461,4127.4,4127.1,2.42295846]
[1760493352154,2.461,4127.4,4126.7,0.1426]
[1760493352155,2.461,4127.4,4127.2,2.42290078]
[1760493352334,2.461,4127.4,4127.3,2.42289147]
[1760493353550,2.461,4127.4,4127.2,2.422937]
[1760493353755,2.9061,4127.4,4127.2,2.422937]
[1760493354054,2.461,4127.4,4127.3,2.42289147]
[1760493355352,0.001,4127.6,4127.5,2.42277407]
[1760493355540,3.554,4127.6,4127.5,2.42277407]
[1760493355954,0.001,4127.6,4127.5,2.42277407]
[1760493356150,2.462,4127.6,4127.5,2.42277407]
[1760493358626,2.9071,4127.6,4127.3,2.42288989]
[1760493358861,0.4451,4127.5,4127.3,2.42288989]
[1760493359059,0.4451,4127.5,4127.0,0.1208]
[1760493359254,2.462,4127.6,4127.1,2.42300889]
[1760493359458,0.4451,4127.4,4127.1,2.42300889]
[1760493359864,0.4451,4127.4,4127.2,2.42292514]
[1760493360156,0.4451,4127.4,4127.1,2.42300542]
[1760493360361,2.462,4127.6,4127.2,2.42294584]
[1760493360556,2.9071,4127.6,4127.2,2.42294584]
[1760493360860,2.462,4127.6,4127.2,2.42294584]
[1760493361231,2.9071,4127.6,4127.2,2.42294584]
[1760493361432,2.462,4127.6,4127.2,2.42294584]
[1760493361764,0.4451,4127.5,4127.0,2.54385783]
[1760493362057,0.4451,4127.5,4127.3,2.42284129]
[1760493362460,0.4451,4127.5,4126.7,0.5782]
[1760493362461,4.67932789,4127.4,4125.8,0.243]
[1760493362628,2.64044272,4127.3,4126.5,2.42335419]
[1760493362830,2.9061,4127.2,4126.5,2.42335419]
[1760493363043,5.32905966,4127.2,4126.4,2.42340561]
[1760493363262,5.32905966,4127.2,4126.5,2.42335352]
[1760493363263,2.9061,4127.2,4126.5,2.42335352]
[1760493363431,5.32905695,4127.2,4126.5,2.42335352]
[1760493363833,5.32905695,4127.2,4126.4,2.42340961]
[1760493364130,2.86811065,4127.1,4126.4,2.42340961]
[1760493364333,2.86817026,4127.0,4126.2,2.42351129]
[1760493364534,0.2175,4126.9,4126.3,2.42347626]
[1760493364872,2.461,4126.8,4126.3,0.47467662]
[1760493365075,2.461,4126.8,4126.4,2.42341993]
[1760493365281,2.184,4126.7,4126.4,2.42341993]
[1760493366675,2.6291,4126.7,4126.1,0.1426]
[1760493367269,2.6291,4126.7,4126.3,2.4234347]
[1760493367976,1.5371,4126.7,4126.3,2.4234347]
[1760493368377,1.5371,4126.7,4126.4,2.42340644]
[1760493369690,1.092,4126.7,4126.4,2.42340672]
[1760493371356,1.092,4126.7,4126.4,2.42341312]
[1760493371556,1.543,4126.7,4126.4,2.42341312]
[1760493371989,0.451,4126.7,4126.4,2.42341312]
[1760493372479,0.451,4126.7,4126.3,2.4234746]
[1760493372789,6.69522789,4126.8,4126.2,0.1208]
[1760493372988,0.1208,4126.3,4125.6,0.1208]
[1760493373283,0.2207,4125.7,4124.8,0.002]
[1760493373490,2.5818,4125.6,4125.0,2.42423569]
[1760493373662,0.451,4125.5,4124.9,2.54509883]
[1760493373982,0.451,4125.5,4124.9,0.1208]
[1760493374488,0.451,4125.5,4125.1,2.42418165]
[1760493374980,2.42359692,4126.1,4125.1,2.42418165]
[1760493374981,0.83114459,4126.7,4125.4,4.23422789]
[1760493375183,0.2175,4126.9,4125.6,2.42383126]
[1760493375184,0.451,4126.4,4125.6,2.42383126]
[1760493375362,2.42358347,4126.2,4125.2,0.21]
[1760493375560,0.2207,4125.3,4124.8,0.002]
[1760493375779,2.462,4125.2,4125.1,2.42418365]
[1760493376174,2.462,4125.2,4124.9,2.42430119]
[1760493376175,2.462,4125.2,4124.8,0.42562279]
[1760493376393,2.913,4125.2,4124.9,2.42430119]
[1760493376987,0.451,4125.1,4124.8,0.002]
[1760493377393,0.2207,4124.9,4124.8,0.002]
[1760493377558,2.64500119,4124.9,4124.8,0.002]
[1760493377754,3.89421459,4124.9,4124.8,0.002]
[1760493377971,6.35621459,4124.9,4124.8,0.002]
[1760493379366,3.9319134,4124.9,4124.8,0.002]
[1760493379671,5.55800119,4124.9,4124.8,0.002]
[1760493380690,3.1337,4124.9,4124.8,0.002]
[1760493380877,2.913,4124.9,4124.8,0.002]
[1760493381901,2.462,4124.9,4124.8,0.002]
[1760493382058,0.2207,4125.5,4124.8,0.002]
[1760493382262,2.462,4125.4,4124.9,4.23422789]
[1760493382484,2.462,4125.4,4125.2,2.42410305]
[1760493382688,0.451,4126.1,4125.2,2.42412489]
[1760493382891,0.451,4126.1,4125.2,0.68925952]
[1760493382892,2.462,4126.0,4125.2,0.68925952]
[1760493383087,2.462,4126.0,4125.4,2.42396396]
[1760493383292,2.462,4126.0,4125.2,0.68925952]
[1760493383495,2.42393691,4125.6,4124.8,0.002]
[1760493383686,0.2207,4124.9,4124.8,0.002]
[1760493383878,2.6827,4124.9,4124.8,0.002]
[1760493384103,0.451,4125.9,4124.8,0.4714]
[1760493384410,0.451,4126.7,4125.8,2.42376695]
[1760493384578,1.725,4126.6,4125.9,2.42367357]
[1760493384779,2.462,4126.5,4126.0,2.42359911]
[1760493384974,2.462,4126.5,4125.7,0.21]
[1760493384975,0.1208,4126.3,4125.7,0.21]
[1760493385191,2.463,4126.2,4125.9,2.42369918]
[1760493385396,1.092,4126.1,4125.9,2.42369918]
[1760493385713,1.092,4126.1,4126.0,2.42365487]
[1760493386080,1.092,4126.1,4125.9,2.42370276]
[1760493386483,1.092,4126.1,4125.7,2.42382922]
[1760493386883,0.451,4126.0,4125.1,0.21]
[1760493387112,2.5838,4125.9,4125.7,2.42378985]
[1760493387279,2.463,4125.8,4125.7,2.42378985]
[1760493387478,2.463,4125.8,4125.5,2.42393776]
[1760493387701,2.463,4125.8,4125.7,2.4238311]
[1760493388335,2.463,4125.8,4125.2,0.1208]
[1760493388636,2.914,4125.8,4125.2,0.1208]
[1760493388837,0.1208,4125.7,4125.0,0.1208]
[1760493389233,0.1208,4125.7,4125.3,2.42404538]
[1760493389530,0.1208,4125.7,4125.4,2.42398806]
[1760493389734,2.462,4125.6,4125.4,2.42398806]
[1760493390837,0.1208,4125.7,4125.4,2.42398806]
[1760493391140,2.462,4125.6,4125.4,2.42398806]
[1760493391607,2.462,4125.6,4125.5,2.42394861]
[1760493392839,2.462,4125.6,4125.4,2.42399336]
[1760493393451,2.462,4125.5,4125.1,2.42417913]
[1760493393650,2.462,4125.5,4125.0,0.1208]
[1760493393803,2.913,4125.5,4125.0,0.1208]
[1760493394126,0.451,4125.4,4124.8,0.002]
[1760493394331,0.1208,4125.1,4124.8,2.42634801]
[1760493394546,2.462,4125.0,4124.8,2.42634801]
[1760493394905,2.462,4125.0,4124.8,0.002]
[1760493395110,2.913,4125.0,4124.8,0.002]
[1760493395332,1.7637,4124.9,4124.8,0.002]
[1760493395637,1.3127,4124.9,4124.8,0.002]
[1760493396838,2.42395204,4125.5,4124.8,0.002]
[1760493396839,0.6336,4125.5,4124.8,0.002]
[1760493397040,4.88601704,4125.4,4124.8,0.002]
[1760493397355,2.42412716,4125.2,4124.8,0.002]
[1760493397559,2.462,4125.1,4124.8,0.002]
[1760493397865,2.913,4125.1,4124.8,0.002]
[1760493398074,2.462,4125.1,4124.8,0.002]
[1760493398243,0.451,4125.0,4124.8,0.002]
[1760493398553,2.462,4125.1,4124.8,0.002]
[1760493398982,2.913,4125.1,4124.8,0.002]
[1760493399165,0.2207,4124.9,4124.8,0.002]
[1760493399659,0.6717,4124.9,4124.8,0.002]
[1760493400032,0.2207,4124.9,4124.8,0.002]
[1760493400859,0.6871,4124.9,4124.8,0.002]
[1760493401358,0.2207,4124.9,4124.8,0.002]
[1760493402463,0.6871,4124.9,4124.8,0.002]
[1760493403395,4.30233052,4124.9,4124.8,0.002]
[1760493403592,6.22233052,4124.9,4124.8,0.002]
[1760493404747,6.31960146,4124.9,4124.8,0.002]
[1760493404953,8.78260146,4124.9,4124.8,0.002]
[1760493405292,10.96660146,4124.9,4124.8,0.002]
[1760493405962,10.96760146,4124.9,4124.8,0.002]
[1760493406782,8.78360146,4124.9,4124.8,0.002]
[1760493406995,4.97819509,4124.4,4124.3,1e-08]
[1760493407169,9.22674173,4124.4,4124.3,1e-08]
[1760493407484,9.69314173,4124.4,4124.3,1e-08]
[1760493408353,10.07348588,4124.4,4124.3,1e-08]
[1760493408991,7.61048588,4124.4,4124.3,1e-08]
[1760493409357,8.28893924,4124.4,4124.3,1e-08]
[1760493409684,8.28993924,4124.4,4124.3,1e-08]
[1760493410669,7.90959509,4124.4,4124.3,1e-08]
[1760493413864,8.00688566,4124.4,4124.3,1e-08]
[1760493415256,10.57323279,4124.4,4124.3,1e-08]
[1760493415458,13.07934143,4124.4,4124.3,1e-08]
[1760493416297,9.05494143,4124.4,4124.3,1e-08]
[1760493416504,9.48213279,4124.4,4124.3,1e-08]
[1760493417001,5.45583279,4124.4,4124.3,1e-08]
[1760493417291,8.38913279,4124.4,4124.3,1e-08]
[1760493421386,5.45583279,4124.4,4124.3,1e-08]
[1760493421586,6.90588566,4124.4,4124.3,1e-08]
[1760493421789,8.47252786,4124.4,4124.3,1e-08]
[1760493422098,3.35763729,4124.4,4124.3,1e-08]
[1760493422485,7.74163729,4124.4,4124.3,1e-08]
[1760493422689,7.74163729,4124.4,4124.3,0.45020001]
[1760493422690,7.44219509,4124.4,4124.3,0.45020001]
[1760493423095,7.44219509,4124.4,4124.3,1e-08]
[1760493423272,7.91149509,4124.4,4124.3,1e-08]
[1760493424274,7.91249509,4124.4,4124.3,1e-08]
[1760493424820,8.29282127,4124.4,4124.3,1e-08]
[1760493425115,9.36455136,4124.4,4124.3,1e-08]
[1760493425318,11.55055136,4124.4,4124.3,1e-08]
[1760493425522,8.89525136,4124.4,4124.3,1e-08]
[1760493425727,9.36455136,4124.4,4124.3,1e-08]
[1760493426495,5.79765136,4124.4,4124.3,1e-08]
[1760493426699,8.26165136,4124.4,4124.3,0.45020001]
[1760493427299,8.89525136,4124.4,4124.3,0.45020001]
[1760493428521,5.26992127,4124.4,4124.3,0.45020001]
[1760493428719,5.90352127,4124.4,4124.3,0.45020001]
[1760493428993,7.82352127,4124.4,4124.3,0.45020001]
[1760493429191,7.82352127,4124.4,4124.3,1e-08]
[1760493429387,2.30132618,4124.4,4124.3,0.45020001]
[1760493429611,4.385,4124.4,4124.3,1e-08]
[1760493429813,8.12414332,4124.4,4124.3,1e-08]
[1760493432692,5.69954823,4124.4,4124.3,0.42890001]
[1760493432892,7.44319509,4124.4,4124.3,0.42890001]
[1760493433093,4.385,4124.4,4124.3,0.42890001]
[1760493433634,6.80959509,4124.4,4124.3,0.42890001]
[1760493435319,5.478,4124.4,4124.3,0.42890001]
[1760493435523,3.558,4124.4,4124.3,1e-08]
[1760493435822,3.558,4124.4,4124.3,0.42890001]
[1760493436002,2.465,4124.4,4124.3,0.42890001]
[1760493436901,2.465,4124.4,4124.3,1e-08]
[1760493437101,5.13609509,4124.4,4124.3,1e-08]
[1760493440303,2.465,4124.4,4124.3,1e-08]
[1760493440505,4.88959509,4124.4,4124.3,1e-08]
[1760493441129,6.80959509,4124.4,4124.3,1e-08]
[1760493442146,0.001,4124.4,4124.3,0.42890001]
[1760493442329,0.732,4124.4,4124.3,2.85355389]
[1760493442530,0.001,4124.4,4124.3,3.4146661]
[1760493442709,0.001,4124.9,4124.8,2.42435996]
[1760493442914,2.465,4124.9,4124.8,2.42435996]
[1760493443241,2.465,4124.9,4124.8,2.85325996]
[1760493444244,0.001,4124.9,4124.8,2.85325996]
[1760493444414,2.465,4124.9,4124.8,3.39310989]
[1760493445141,0.001,4124.9,4124.8,3.39310989]
[1760493445339,4.651,4124.9,4124.8,3.39310989]
[1760493447141,2.464,4124.9,4124.8,3.39310989]
[1760493447521,0.001,4124.9,4124.8,3.39310989]
[1760493447721,2.465,4124.9,4124.8,3.41735348]
[1760493447929,2.465,4124.9,4124.8,3.39310989]
[1760493450255,0.001,4124.9,4124.8,3.39310989]
[1760493450549,0.001,4124.9,4124.8,2.96420989]
[1760493450550,2.464,4124.9,4124.8,2.96420989]
[1760493451322,2.464,4124.9,4124.8,3.39310989]
[1760493453240,2.464,4124.9,4124.8,0.53984993]
[1760493453556,2.464,4124.9,4124.8,2.42435996]
[1760493455256,4.65,4124.9,4124.8,2.42435996]
[1760493457936,3.557,4124.9,4124.8,2.42435996]
[1760493458550,2.464,4124.9,4124.8,2.42435996]
[1760493459091,2.464,4124.9,4124.8,2.85325996]
[1760493459263,2.464,4124.9,4124.8,2.96420983]
[1760493460128,2.464,4124.9,4124.8,0.53984987]
[1760493460336,2.464,4124.9,4124.7,0.1208]
[1760493460633,2.464,4124.9,4124.8,2.42435996]
[1760493465388,4.648,4124.9,4124.8,2.42435996]
[1760493468290,3.556,4124.9,4124.8,2.42435996]
[1760493468464,2.9166,4124.9,4124.8,2.42435996]
[1760493468853,2.464,4124.9,4124.8,2.42435996]
[1760493472162,3.42424,4124.9,4124.3,1e-08]
[1760493472377,4.23917673,4124.4,4124.3,1e-08]
[1760493472566,2.463,4124.4,4124.3,1e-08]
[1760493472766,5.31599509,4124.4,4124.3,1e-08]
[1760493473070,6.51395517,4124.4,4124.3,1e-08]
[1760493473275,4.08936008,4124.4,4124.3,1e-08]
[1760493475357,8.69795517,4124.4,4124.3,1e-08]
[1760493475682,6.27336008,4124.4,4124.3,1e-08]
[1760493476088,5.18136008,4124.4,4124.3,1e-08]
[1760493476265,4.08936008,4124.4,4124.3,1e-08]
[1760493477382,2.463,4124.4,4124.3,1e-08]
[1760493477586,2.8914,4124.4,4124.3,1e-08]
[1760493478227,3.33740988,4124.9,4124.3,1e-08]
[1760493478228,2.52936843,4124.9,4124.3,1e-08]
[1760493478518,0.1208,4124.6,4124.3,1e-08]
[1760493478823,2.463,4124.5,4124.3,1e-08]
[1760493478982,2.463,4124.5,4124.3,2.42464521]
[1760493479318,0.001,4124.9,4124.4,0.46]
[1760493479612,2.463,4124.8,4124.7,2.42441874]
[1760493481211,2.463,4124.8,4124.7,2.88441874]
[1760493481581,2.463,4124.8,4124.7,2.42441874]
[1760493482506,0.001,4124.9,4124.6,2.42447752]
[1760493482712,2.463,4124.8,4124.7,2.42441874]
[1760493485416,4.649,4124.8,4124.7,2.42441874]
[1760493486995,3.556,4124.8,4124.7,2.42441874]
[1760493488994,2.463,4124.8,4124.7,2.42441874]
[1760493489614,2.463,4124.8,4124.4,0.1208]
[1760493489926,0.4749,4124.7,4124.4,0.1208]
[1760493490230,0.4749,4124.7,4124.5,2.42448752]
[1760493490604,2.463,4124.8,4124.4,2.54538262]
[1760493490827,2.463,4124.8,4124.7,2.42441874]
[1760493491328,2.463,4124.8,4124.6,2.42446286]
[1760493491524,2.9379,4124.8,4124.6,2.42446286]
[1760493492024,2.9379,4124.8,4124.4,2.54534256]
[1760493492208,0.4749,4124.7,4124.4,2.54534256]
[1760493492593,0.4749,4124.7,4124.4,2.54538639]
[1760493492797,2.463,4124.8,4124.3,1e-08]
[1760493492798,0.4749,4124.6,4124.3,1e-08]
[1760493493002,2.463,4124.5,4124.3,2.42465021]
[1760493493235,2.9379,4124.5,4124.3,2.42465021]
[1760493493809,2.463,4124.5,4124.3,2.42465021]
[1760493494928,2.463,4124.5,4124.4,2.42459509]
[1760493495235,3.556,4124.5,4124.4,2.42459509]
[1760493495449,4.649,4124.5,4124.4,2.42459509]
[1760493495832,3.556,4124.5,4124.4,2.42459509]
[1760493496445,0.1208,4124.7,4124.6,2.42447752]
[1760493496688,2.5828,4124.7,4124.4,2.42453919]
[1760493496812,2.5828,4124.7,4124.5,2.42453039]
[1760493497010,0.001,4124.8,4124.5,2.42453039]
[1760493497011,2.462,4124.6,4124.5,2.42453039]
[1760493498152,2.462,4124.6,4124.5,2.37453039]
[1760493499770,2.462,4124.6,4124.3,0.12080001]
[1760493499943,0.4749,4124.5,4124.3,1e-08]
[1760493500119,2.462,4124.6,4124.5,2.4245363]
[1760493500319,2.9369,4124.6,4124.5,2.4245363]
[1760493500539,2.9369,4124.6,4124.4,2.42458428]
[1760493501768,2.9369,4124.6,4124.5,2.4245363]
[1760493501964,2.9369,4124.6,4124.3,1e-08]
[1760493502283,0.4749,4124.5,4124.3,1e-08]
[1760493502746,0.4749,4124.5,4124.3,2.42465389]
[1760493502747,2.462,4124.4,4124.3,2.42465389]
[1760493505386,4.648,4124.4,4124.3,2.42465389]
[1760493509578,3.555,4124.4,4124.3,2.42465389]
[1760493509956,2.462,4124.4,4124.3,1e-08]
[1760493510164,2.84108,4124.4,4124.3,1e-08]
[1760493510369,3.31598,4124.4,4124.3,1e-08]
[1760493510772,3.0577,4124.4,4124.3,1e-08]
[1760493511083,13.1242231,4124.4,4124.3,1e-08]
[1760493513754,8.03589509,4124.4,4124.3,1e-08]
[1760493514761,7.91509509,4124.4,4124.3,1e-08]
[1760493515381,10.48140524,4124.4,4124.3,1e-08]
[1760493515581,11.84505113,4124.4,4124.3,1e-08]
[1760493516287,10.75205113,4124.4,4124.3,1e-08]
[1760493518271,9.65905113,4124.4,4124.3,1e-08]
[1760493521578,9.75632254,4124.4,4124.3,1e-08]
[1760493522163,9.28142254,4124.4,4124.3,1e-08]
[1760493522489,8.80384098,4124.4,4124.3,1e-08]
[1760493522687,3.28364589,4124.4,4124.3,1e-08]
[1760493522876,4.382,4124.4,4124.3,1e-08]
[1760493523462,6.80659509,4124.4,4124.3,1e-08]
[1760493523865,4.88659509,4124.4,4124.3,1e-08]
[1760493524673,2.42459509,4124.4,4124.3,1e-08]
[1760493524868,4.88659509,4124.4,4124.3,1e-08]
[1760493525187,5.66331655,4124.4,4124.3,1e-08]
[1760493525383,7.84931655,4124.4,4124.3,1e-08]
[1760493525579,4.648,4124.4,4124.3,1e-08]
[1760493527909,2.462,4124.4,4124.3,1e-08]
[1760493529706,4.88659509,4124.4,4124.3,1e-08]
[1760493530265,5.34179509,4124.4,4124.3,1e-08]
[1760493530478,6.15655262,4124.4,4124.3,1e-08]
[1760493530680,3.27675753,4124.4,4124.3,1e-08]
[1760493530975,0.001,4124.6,4124.3,0.46920001]
[1760493531203,0.1208,4124.5,4124.4,0.4692]
[1760493531380,0.1208,4124.5,4124.4,2.89379509]
[1760493531577,0.001,4124.6,4124.5,2.4245363]
[1760493531775,1.164,4124.6,4124.5,2.8937363]
[1760493531986,1.164,4124.6,4124.5,4.20985276]
[1760493535284,3.35,4124.6,4124.5,4.20985276]
[1760493538522,1.094,4124.6,4124.5,4.20985276]
[1760493538722,4.649,4124.6,4124.5,4.20985276]
[1760493540524,0.001,4124.6,4124.5,4.20985276]